fUST/lending_fUST_20240803
["ID","MTS","AMOUNT","RATE_DAILY","PERIOD"]
[334022776,1722683454271,-750.022649,0.00014235,2]
[334022777,1722683454280,-693.987078,0.00014235,2]
[334022778,1722683454291,-693.987078,0.00014235,2]
[334022779,1722683454300,-151.0,0.00014235,2]
[334022780,1722683454310,-151.0,0.00014235,2]
[334022781,1722683454319,-552.757268,0.00014235,2]
[334022782,1722683454328,-552.757268,0.00014235,2]
[334022783,1722683454338,-333.748963,0.00014235,2]
[334022784,1722683454347,-333.748963,0.00014235,2]
[334022785,1722683454357,-1163.625441,0.00014235,2]
[334022786,1722683454367,-1163.625441,0.00014235,2]
[334022787,1722683454378,-440.848117,0.00014235,2]
[334022788,1722683454389,-440.848123,0.00014235,2]
[334022789,1722683454400,-808.864047,0.00014235,2]
[334022790,1722683454411,-808.864041,0.00014235,2]
[334022791,1722683454423,-231.820996,0.00014235,2]
[334022792,1722683454435,-231.820996,0.00014235,2]
[334022793,1722683454448,-258.243827,0.00014235,2]
[334022794,1722683454459,-151.0,0.00014236,2]
[334022795,1722683454470,-151.0,0.00014236,2]
[334022796,1722683454480,-895.300982,0.00014245,2]
[334022797,1722683454491,-895.300982,0.00014245,2]
[334022798,1722683454502,-151.0,0.00014245,2]
[334022799,1722683454514,-723.124593,0.00014245,2]
[334022800,1722683454525,-723.124593,0.00014245,2]
[334022801,1722683454536,-506.56582203,0.00014246,2]
[334022802,1722683454547,-506.07,0.00014246,2]
[334022803,1722683454557,-500.0,0.00014246,2]
[334022804,1722683454568,-151.0,0.00014246,2]
[334022805,1722683454579,-500.0,0.00014246,2]
[334022806,1722683454590,-365.21649624,0.00014246,2]
[334022807,1722683454601,-500.0,0.00014246,2]
[334022808,1722683454612,-151.0,0.00014246,2]
[334022809,1722683454623,-500.0,0.00014246,2]
[334022810,1722683454636,-500.0,0.00014246,2]
[334022811,1722683454646,-214.44196391,0.00014246,2]
[334022812,1722683454656,-500.0,0.00014246,2]
[334022813,1722683454665,-707.06,0.00014246,2]
[334022814,1722683454675,-182.164398,0.00014246,2]
[334022815,1722683454686,-182.164398,0.00014246,2]
[334022816,1722683454696,-182.164398,0.00014246,2]
[334022817,1722683454705,-182.164398,0.00014246,2]
[334022818,1722683454715,-567.72,0.00014246,2]
[334022819,1722683454724,-1082.09,0.00014246,2]
[334022820,1722683454735,-500.0,0.00014246,2]
[334022821,1722683454744,-569.1133503,0.00014246,2]
[334022822,1722683454754,-500.0,0.00014246,2]
[334022823,1722683454764,-500.0,0.00014246,2]
[334022824,1722683454775,-500.0,0.00014246,2]
[334022825,1722683454786,-510.67185755,0.00014246,2]
[334022826,1722683454796,-500.0,0.00014246,2]
[334022827,1722683454805,-1555.35,0.00014246,2]
[334022828,1722683454814,-500.0,0.00014246,2]
[334022829,1722683454823,-500.0,0.00014246,2]
[334022830,1722683454832,-500.0,0.00014246,2]
[334022831,1722683454841,-500.0,0.00014246,2]
[334022832,1722683454851,-624.73544997,0.00014246,2]
[334022833,1722683454861,-549.06,0.00014246,2]
[334022834,1722683454870,-500.0,0.00014246,2]
[334022835,1722683454880,-151.0,0.00014246,2]
[334022836,1722683454891,-151.0,0.00014246,2]
[334022837,1722683454900,-281.959386,0.00014246,2]
[334022838,1722683454909,-500.0,0.00014246,2]
[334022839,1722683454918,-500.0,0.00014246,2]
[334022840,1722683454932,-500.0,0.00014246,2]
[334022841,1722683454941,-834.88,0.00014246,2]
[334022842,1722683454951,-500.0,0.00014246,2]
[334022843,1722683454960,-517.96333526,0.00014246,2]
[334022844,1722683454970,-500.0,0.00014246,2]
[334022845,1722683454980,-500.0,0.00014246,2]
[334022846,1722683454989,-500.0,0.00014246,2]
[334022847,1722683455000,-239.386363,0.00014246,2]
[334022848,1722683455010,-239.386363,0.00014246,2]
[334022849,1722683455022,-621.18,0.00014246,2]
[334022850,1722683455031,-239.386363,0.00014246,2]
[334022851,1722683455040,-251.959794,0.00014246,2]
[334022852,1722683455049,-239.386367,0.00014246,2]
[334022853,1722683455060,-251.959794,0.00014246,2]
[334022854,1722683455069,-251.959794,0.00014246,2]
[334022855,1722683455082,-251.959794,0.00014246,2]
[334022856,1722683455092,-573.2,0.00014246,2]
[334022857,1722683455103,-500.0,0.00014246,2]
[334022858,1722683455113,-883.45,0.00014246,2]
[334022859,1722683455124,-1281.08,0.00014246,2]
[334022860,1722683455135,-623.43429917,0.00014246,2]
[334022861,1722683455145,-500.0,0.00014246,2]
[334022862,1722683455156,-500.0,0.00014246,2]
[334022863,1722683455166,-500.0,0.00014246,2]
[334022864,1722683455177,-843.46,0.00014246,2]
[334022865,1722683455189,-500.0,0.00014246,2]
[334022866,1722683455200,-504.06836483,0.00014246,2]
[334022867,1722683455210,-500.0,0.00014246,2]
[334022868,1722683455219,-500.0,0.00014246,2]
[334022869,1722683455231,-500.0,0.00014246,2]
[334022870,1722683455242,-237.85825254,0.00014246,2]
[334022871,1722683455251,-797.727985,0.00014246,2]
[334022872,1722683455262,-797.727985,0.00014246,2]
[334022873,1722683455273,-797.727985,0.00014246,2]
[334022874,1722683455283,-797.727979,0.00014246,2]
[334022875,1722683455292,-500.0,0.00014246,2]
[334022876,1722683455302,-750.022649,0.00014246,2]
[334022877,1722683455311,-750.022649,0.00014246,2]
[334022878,1722683455321,-750.022649,0.00014246,2]
[334022879,1722683455331,-750.022641,0.00014246,2]
[334022880,1722683455340,-693.987078,0.00014246,2]
[334022881,1722683455350,-693.987078,0.00014246,2]
[334022882,1722683455359,-693.987078,0.00014246,2]
[334022883,1722683455371,-693.987073,0.00014246,2]
[334022884,1722683455383,-500.0,0.00014246,2]
[334022885,1722683455393,-505.2784371,0.00014246,2]
[334022886,1722683455404,-1447.26,0.00014246,2]
[334022887,1722683455415,-151.0,0.00014246,2]
[334022888,1722683455428,-151.0,0.00014246,2]
[334022889,1722683455439,-500.0,0.00014246,2]
[334022890,1722683455449,-952.47,0.00014246,2]
[334022891,1722683455459,-1186.83,0.00014246,2]
[334022892,1722683455471,-2111.79,0.00014246,2]
[334022893,1722683455482,-2341.69,0.00014246,2]
[334022894,1722683455494,-151.0,0.00014246,2]
[334022895,1722683455506,-151.0,0.00014246,2]
[334022896,1722683455522,-500.0,0.00014246,2]
[334022897,1722683455532,-500.0,0.00014246,2]
[334022898,1722683455541,-500.0,0.00014246,2]
[334022899,1722683455551,-2001.49,0.00014246,2]
[334022900,1722683455560,-500.0,0.00014246,2]
[334022901,1722683455571,-500.0,0.00014246,2]
[334022902,1722683455581,-895.300982,0.00014246,2]
[334022903,1722683455592,-895.30098595,0.00014246,2]
[334022904,1722683455602,-7908.59,0.00014246,2]
[334022905,1722683455612,-500.0,0.00014246,2]
[334022906,1722683455622,-500.0,0.00014246,2]
[334022907,1722683455631,-500.0,0.00014246,2]
[334022908,1722683455642,-657.41,0.00014246,2]
[334022909,1722683455652,-500.0,0.00014246,2]
[334022910,1722683455662,-500.0,0.00014246,2]
[334022911,1722683455671,-500.0,0.00014246,2]
[334022912,1722683455681,-500.0,0.00014246,2]
[334022913,1722683455691,-500.0,0.00014246,2]
[334022914,1722683455700,-151.0,0.00014246,2]
[334022915,1722683455709,-2813.76,0.00014246,2]
[334022916,1722683455719,-2058.35,0.00014246,2]
[334022917,1722683455729,-1314.23,0.00014246,2]
[334022918,1722683455738,-723.124593,0.00014246,2]
[334022919,1722683455748,-872.27,0.00014246,2]
[334022920,1722683455758,-500.0,0.00014246,2]
[334022921,1722683455771,-723.124587,0.00014246,2]
[334022922,1722683455782,-6633.31,0.00014246,2]
[334022923,1722683455794,-552.757268,0.00014246,2]
[334022924,1722683455805,-552.75727,0.00014246,2]
[334022925,1722683455815,-500.0,0.00014246,2]
[334022926,1722683455825,-333.748963,0.00014246,2]
[334022927,1722683455836,-319.53433584,0.00014246,2]
[334022928,1722683455846,-577.64241565,0.00014246,2]
[334022929,1722683455858,-506.98610963,0.00014246,2]
[334022930,1722683455869,-500.0,0.00014246,2]
[334022931,1722683455881,-333.748962,0.00014246,2]
[334022932,1722683455891,-627.42,0.00014246,2]
[334022933,1722683455973,-1007.33,0.00014246,2]
[334022934,1722683455984,-1665.05,0.00014246,2]
[334022935,1722683455994,-1050.47,0.00014246,2]
[334022936,1722683456005,-901.36,0.00014246,2]
[334022937,1722683456015,-447.2845941,0.00014246,2]
[334022938,1722683456033,-500.0,0.00014246,2]
[334022939,1722683456043,-870.97,0.00014246,2]
[334022940,1722683456054,-500.0,0.00014246,2]
[334022941,1722683456064,-558.86,0.00014246,2]
[334022942,1722683456073,-500.0,0.00014246,2]
[334022943,1722683456083,-1900.02,0.00014246,2]
[334022944,1722683456095,-500.0,0.00014246,2]
[334022945,1722683456106,-500.0,0.00014246,2]
[334022946,1722683456118,-507.27643484,0.00014246,2]
[334022947,1722683456128,-500.0,0.00014246,2]
[334022948,1722683456139,-752.95,0.00014246,2]
[334022949,1722683456150,-1163.625441,0.00014246,2]
[334022950,1722683456160,-4371.09,0.00014246,2]
[334022951,1722683456171,-6048.46,0.00014246,2]
[334022952,1722683456181,-1163.625433,0.00014246,2]
[334022953,1722683456192,-500.0,0.00014246,2]
[334022954,1722683456204,-642.41,0.00014246,2]
[334022955,1722683456214,-790.57,0.00014246,2]
[334022956,1722683456224,-723.14,0.00014246,2]
[334022957,1722683456235,-500.0,0.00014246,2]
[334022958,1722683456246,-500.0,0.00014246,2]
[334022959,1722683456257,-583.21,0.00014246,2]
[334022960,1722683456268,-1815.5,0.00014246,2]
[334022961,1722683456278,-915.18,0.00014246,2]
[334022962,1722683456288,-500.0,0.00014246,2]
[334022963,1722683456298,-500.0,0.00014246,2]
[334022964,1722683456309,-500.0,0.00014246,2]
[334022965,1722683456318,-2473.64,0.00014246,2]
[334022966,1722683456328,-500.0,0.00014246,2]
[334022967,1722683456338,-429.66954169,0.00014246,2]
[334022968,1722683456348,-500.0,0.00014246,2]
[334022969,1722683456357,-537.74,0.00014246,2]
[334022970,1722683456367,-569.12686434,0.00014246,2]
[334022971,1722683456376,-500.0,0.00014246,2]
[334022972,1722683456385,-153.43758854,0.00014246,2]
[334022973,1722683456395,-500.0,0.00014246,2]
[334022974,1722683456404,-226.93557239,0.00014246,2]
[334022975,1722683456417,-500.0,0.00014246,2]
[334022976,1722683456428,-500.0,0.00014246,2]
[334022977,1722683456439,-1050.89,0.00014246,2]
[334022978,1722683456451,-500.0,0.00014246,2]
[334022979,1722683456464,-500.0,0.00014246,2]
[334022980,1722683456474,-779.27,0.00014246,2]
[334022981,1722683456486,-500.0,0.00014246,2]
[334022982,1722683456496,-727.85,0.00014246,2]
[334022983,1722683456508,-433.81679369,0.00014246,2]
[334022984,1722683456520,-1028.93,0.00014246,2]
[334022985,1722683456531,-629.63,0.00014246,2]
[334022986,1722683456541,-750.0,0.00014247,2]
[334022987,1722683456552,-669.443662,0.00014247,2]
[334022988,1722683456562,-151.0,0.00014419,2]
[334022989,1722683456572,-151.0,0.00014419,2]
[334022990,1722683456582,-151.0,0.0001451,2]
[334022991,1722683456592,-182.164398,0.00014518,2]
[334022992,1722683456602,-182.164406,0.00014518,2]
[334022993,1722683456612,-506.07,0.0001452,2]
[334022994,1722683456623,-500.73758951,0.0001452,2]
[334022995,1722683456634,-179.54999297,0.0001452,2]
[334022996,1722683456645,-512.6563424,0.0001452,2]
[334022997,1722683456655,-500.0,0.0001452,2]
[334022998,1722683456665,-500.0,0.0001452,2]
[334022999,1722683456675,-707.06,0.0001452,2]
[334023000,1722683456686,-567.72,0.0001452,2]
[334023001,1722683456697,-1082.09,0.0001452,2]
[334023002,1722683456710,-500.0,0.0001452,2]
[334023003,1722683456720,-500.0,0.0001452,2]
[334023004,1722683456729,-500.0,0.0001452,2]
[334023005,1722683456739,-1555.35,0.0001452,2]
[334023006,1722683456748,-500.0,0.0001452,2]
[334023007,1722683456758,-500.0,0.0001452,2]
[334023008,1722683456767,-549.06,0.0001452,2]
[334023009,1722683456777,-500.0,0.0001452,2]
[334023010,1722683456786,-500.0,0.0001452,2]
[334023011,1722683456796,-500.0,0.0001452,2]
[334023012,1722683456806,-500.0,0.0001452,2]
[334023013,1722683456815,-834.88,0.0001452,2]
[334023014,1722683456824,-500.0,0.0001452,2]
[334023015,1722683456833,-500.0,0.0001452,2]
[334023016,1722683456843,-500.0,0.0001452,2]
[334023017,1722683456852,-500.0,0.0001452,2]
[334023018,1722683456862,-621.18,0.0001452,2]
[334023019,1722683456871,-573.2,0.0001452,2]
[334023020,1722683456881,-883.45,0.0001452,2]
[334023021,1722683456891,-1281.08,0.0001452,2]
[334023022,1722683456901,-569.52098236,0.0001452,2]
[334023023,1722683456910,-203.09614656,0.0001452,2]
[334023024,1722683456920,-500.0,0.0001452,2]
[334023025,1722683456930,-843.46,0.0001452,2]
[334023026,1722683456939,-500.0,0.0001452,2]
[334023027,1722683456948,-506.86177637,0.0001452,2]
[334023028,1722683456957,-500.0,0.0001452,2]
[334023029,1722683456966,-500.0,0.0001452,2]
[334023030,1722683456976,-500.0,0.0001452,2]
[334023031,1722683456986,-1447.26,0.0001452,2]
[334023032,1722683456995,-500.0,0.0001452,2]
[334023033,1722683457006,-952.47,0.0001452,2]
[334023034,1722683457015,-1186.83,0.0001452,2]
[334023035,1722683457026,-2111.79,0.0001452,2]
[334023036,1722683457035,-2341.69,0.0001452,2]
[334023037,1722683457044,-500.0,0.0001452,2]
[334023038,1722683457053,-500.0,0.0001452,2]
[334023039,1722683457062,-2001.49,0.0001452,2]
[334023040,1722683457072,-500.0,0.0001452,2]
[334023041,1722683457081,-500.0,0.0001452,2]
[334023042,1722683457091,-7908.59,0.0001452,2]
[334023043,1722683457100,-500.0,0.0001452,2]
[334023044,1722683457109,-500.0,0.0001452,2]
[334023045,1722683457119,-630.46966725,0.0001452,2]
[334023046,1722683457128,-657.41,0.0001452,2]
[334023047,1722683457138,-500.0,0.0001452,2]
[334023048,1722683457147,-500.0,0.0001452,2]
[334023049,1722683457157,-500.0,0.0001452,2]
[334023050,1722683457167,-500.0,0.0001452,2]
[334023051,1722683457176,-2813.76,0.0001452,2]
[334023052,1722683457186,-2058.35,0.0001452,2]
[334023053,1722683457196,-1314.23,0.0001452,2]
[334023054,1722683457206,-872.27,0.0001452,2]
[334023055,1722683457215,-500.0,0.0001452,2]
[334023056,1722683457225,-6633.31,0.0001452,2]
[334023057,1722683457234,-500.0,0.0001452,2]
[334023058,1722683457243,-500.0,0.0001452,2]
[334023059,1722683457252,-627.42,0.0001452,2]
[334023060,1722683457262,-1007.33,0.0001452,2]
[334023061,1722683457272,-1050.47,0.0001452,2]
[334023062,1722683457282,-1665.05,0.0001452,2]
[334023063,1722683457292,-901.36,0.0001452,2]
[334023064,1722683457301,-500.0,0.0001452,2]
[334023065,1722683457312,-870.97,0.0001452,2]
[334023066,1722683457321,-500.0,0.0001452,2]
[334023067,1722683457330,-558.86,0.0001452,2]
[334023068,1722683457341,-500.0,0.0001452,2]
[334023069,1722683457351,-1900.02,0.0001452,2]
[334023070,1722683457360,-500.0,0.0001452,2]
[334023071,1722683457370,-500.0,0.0001452,2]
[334023072,1722683457379,-752.95,0.0001452,2]
[334023073,1722683457388,-4371.09,0.0001452,2]
[334023074,1722683457398,-6048.46,0.0001452,2]
[334023075,1722683457408,-500.0,0.0001452,2]
[334023076,1722683457417,-642.41,0.0001452,2]
[334023077,1722683457427,-790.57,0.0001452,2]
[334023078,1722683457437,-723.14,0.0001452,2]
[334023079,1722683457447,-500.0,0.0001452,2]
[334023080,1722683457458,-500.0,0.0001452,2]
[334023081,1722683457468,-583.21,0.0001452,2]
[334023082,1722683457477,-1815.5,0.0001452,2]
[334023083,1722683457487,-915.18,0.0001452,2]
[334023084,1722683457497,-500.0,0.0001452,2]
[334023085,1722683457507,-488.53046868,0.0001452,2]
[334023086,1722683457519,-500.0,0.0001452,2]
[334023087,1722683457531,-2473.64,0.0001452,2]
[334023088,1722683457543,-500.0,0.0001452,2]
[334023089,1722683457554,-500.0,0.0001452,2]
[334023090,1722683457565,-537.74,0.0001452,2]
[334023091,1722683457576,-500.0,0.0001452,2]
[334023092,1722683457588,-500.0,0.0001452,2]
[334023093,1722683457599,-500.0,0.0001452,2]
[334023094,1722683457611,-500.0,0.0001452,2]
[334023095,1722683457624,-1050.89,0.0001452,2]
[334023096,1722683457635,-500.0,0.0001452,2]
[334023097,1722683457646,-779.27,0.0001452,2]
[334023098,1722683457656,-500.0,0.0001452,2]
[334023099,1722683457668,-727.85,0.0001452,2]
[334023100,1722683457680,-1028.93,0.0001452,2]
[334023101,1722683457692,-629.63,0.0001452,2]
[334023102,1722683457703,-420.0,0.00014538,2]
[334023103,1722683457714,-206.960494,0.0001454,2]
[334023104,1722683457793,-3200.0,0.00014607,2]
[334023105,1722683457803,-150.162,0.00014607,2]
[334023106,1722683457813,-194.54850496,0.0001469,2]
[334023107,1722683457823,-9676.27282309,0.0001469,2]
[334023108,1722683457834,-1091.50397563,0.0001469,2]
[334023109,1722683457844,-816.16582707,0.0001469,2]
[334023110,1722683457854,-286.58862085,0.0001469,2]
[334023111,1722683457863,-261.19201773,0.0001469,2]
[334023112,1722683457872,-337.30968789,0.0001469,2]
[334023113,1722683457883,-269.63517677,0.0001469,2]
[334023114,1722683457895,-30000.0,0.0001469,2]
[334023115,1722683457906,-30000.0,0.0001469,2]
[334023116,1722683457917,-156.0,0.000147,2]
[334023117,1722683457930,-620.00000585,0.0001474,2]
[334023118,1722683457951,-506.07,0.00014794,2]
[334023119,1722683457962,-500.0,0.00014794,2]
[334023120,1722683457973,-707.06,0.00014794,2]
[334023121,1722683457985,-567.72,0.00014794,2]
[334023122,1722683457996,-1082.09,0.00014794,2]
[334023123,1722683458008,-500.0,0.00014794,2]
[334023124,1722683458020,-500.0,0.00014794,2]
[334023125,1722683458029,-505.33346437,0.00014794,2]
[334023126,1722683458038,-1555.35,0.00014794,2]
[334023127,1722683458048,-500.0,0.00014794,2]
[334023128,1722683458059,-500.0,0.00014794,2]
[334023129,1722683458068,-549.06,0.00014794,2]
[334023130,1722683458080,-500.0,0.00014794,2]
[334023131,1722683458091,-500.0,0.00014794,2]
[334023132,1722683458100,-500.0,0.00014794,2]
[334023133,1722683458110,-500.0,0.00014794,2]
[334023134,1722683458120,-834.88,0.00014794,2]
[334023135,1722683458130,-500.0,0.00014794,2]
[334023136,1722683458139,-500.0,0.00014794,2]
[334023137,1722683458149,-500.0,0.00014794,2]
[334023138,1722683458159,-500.0,0.00014794,2]
[334023139,1722683458169,-621.18,0.00014794,2]
[334023140,1722683458179,-573.2,0.00014794,2]
[334023141,1722683458189,-883.45,0.00014794,2]
[334023142,1722683458198,-1281.08,0.00014794,2]
[334023143,1722683458208,-500.0,0.00014794,2]
[334023144,1722683458217,-843.46,0.00014794,2]
[334023145,1722683458227,-500.0,0.00014794,2]
[334023146,1722683458236,-500.0,0.00014794,2]
[334023147,1722683458246,-500.0,0.00014794,2]
[334023148,1722683458257,-500.0,0.00014794,2]
[334023149,1722683458266,-1447.26,0.00014794,2]
[334023150,1722683458278,-500.0,0.00014794,2]
[334023151,1722683458288,-952.47,0.00014794,2]
[334023152,1722683458297,-1186.83,0.00014794,2]
[334023153,1722683458307,-2111.79,0.00014794,2]
[334023154,1722683458317,-2341.69,0.00014794,2]
[334023155,1722683458327,-500.0,0.00014794,2]
[334023156,1722683458337,-2001.49,0.00014794,2]
[334023157,1722683458346,-500.0,0.00014794,2]
[334023158,1722683458356,-500.0,0.00014794,2]
[334023159,1722683458365,-7908.59,0.00014794,2]
[334023160,1722683458376,-500.0,0.00014794,2]
[334023161,1722683458386,-500.0,0.00014794,2]
[334023162,1722683458396,-657.41,0.00014794,2]
[334023163,1722683458407,-500.0,0.00014794,2]
[334023164,1722683458417,-563.93869333,0.00014794,2]
[334023165,1722683458427,-500.0,0.00014794,2]
[334023166,1722683458438,-500.0,0.00014794,2]
[334023167,1722683458447,-2813.76,0.00014794,2]
[334023168,1722683458458,-2058.35,0.00014794,2]
[334023169,1722683458468,-1314.23,0.00014794,2]
[334023170,1722683458479,-872.27,0.00014794,2]
[334023171,1722683458489,-500.0,0.00014794,2]
[334023172,1722683458499,-6633.31,0.00014794,2]
[334023173,1722683458508,-500.0,0.00014794,2]
[334023174,1722683458517,-500.0,0.00014794,2]
[334023175,1722683458530,-627.42,0.00014794,2]
[334023176,1722683458540,-1007.33,0.00014794,2]
[334023177,1722683458550,-1050.47,0.00014794,2]
[334023178,1722683458561,-1665.05,0.00014794,2]
[334023179,1722683458574,-901.36,0.00014794,2]
[334023180,1722683458585,-500.0,0.00014794,2]
[334023181,1722683458598,-870.97,0.00014794,2]
[334023182,1722683458610,-500.0,0.00014794,2]
[334023183,1722683458621,-558.86,0.00014794,2]
[334023184,1722683458634,-500.0,0.00014794,2]
[334023185,1722683458646,-1900.02,0.00014794,2]
[334023186,1722683458658,-500.0,0.00014794,2]
[334023187,1722683458670,-500.0,0.00014794,2]
[334023188,1722683458681,-752.95,0.00014794,2]
[334023189,1722683458692,-4371.09,0.00014794,2]
[334023190,1722683458701,-6048.46,0.00014794,2]
[334023191,1722683458711,-500.0,0.00014794,2]
[334023192,1722683458721,-642.41,0.00014794,2]
[334023193,1722683458730,-790.57,0.00014794,2]
[334023194,1722683458741,-723.14,0.00014794,2]
[334023195,1722683458751,-500.0,0.00014794,2]
[334023196,1722683458762,-500.0,0.00014794,2]
[334023197,1722683458772,-583.21,0.00014794,2]
[334023198,1722683458783,-1815.5,0.00014794,2]
[334023199,1722683458792,-915.18,0.00014794,2]
[334023200,1722683458802,-500.0,0.00014794,2]
[334023201,1722683458813,-503.58,0.00014794,2]
[334023202,1722683458823,-2473.64,0.00014794,2]
[334023203,1722683458833,-500.0,0.00014794,2]
[334023204,1722683458842,-500.0,0.00014794,2]
[334023205,1722683458852,-537.74,0.00014794,2]
[334023206,1722683458862,-500.0,0.00014794,2]
[334023207,1722683458873,-500.0,0.00014794,2]
[334023208,1722683458882,-500.0,0.00014794,2]
[334023209,1722683458892,-500.0,0.00014794,2]
[334023210,1722683458901,-1050.89,0.00014794,2]
[334023211,1722683458911,-500.0,0.00014794,2]
[334023212,1722683458924,-779.27,0.00014794,2]
[334023213,1722683458937,-727.85,0.00014794,2]
[334023214,1722683458963,-500.0,0.00014794,2]
[334023215,1722683458973,-1028.93,0.00014794,2]
[334023216,1722683458982,-629.63,0.00014794,2]
[334023217,1722683458991,-2847.71475529,0.00015,2]
[334023218,1722683459000,-2127.9650503,0.00015,2]
[334023219,1722683459011,-951.61482036,0.00015,2]
[334023220,1722683459023,-459.65038958,0.00015,4]
[334023221,1722683459039,-302.81833017,0.00015,2]
[334023222,1722683459049,-400.0,0.00015042,2]
[334023223,1722683459058,-200.23993787,0.00015042,2]
[334023224,1722683459067,-506.07,0.00015068,2]
[334023225,1722683459076,-500.0,0.00015068,2]
[334023226,1722683459085,-707.06,0.00015068,2]
[334023227,1722683459094,-567.72,0.00015068,2]
[334023228,1722683459103,-1082.09,0.00015068,2]
[334023229,1722683459113,-500.0,0.00015068,2]
[334023230,1722683459123,-531.41397317,0.00015068,2]
[334023231,1722683459132,-1555.35,0.00015068,2]
[334023232,1722683459142,-500.0,0.00015068,2]
[334023233,1722683459151,-500.0,0.00015068,2]
[334023234,1722683459160,-549.06,0.00015068,2]
[334023235,1722683459170,-500.0,0.00015068,2]
[334023236,1722683459179,-500.0,0.00015068,2]
[334023237,1722683459190,-500.0,0.00015068,2]
[334023238,1722683459200,-834.88,0.00015068,2]
[334023239,1722683459209,-500.0,0.00015068,2]
[334023240,1722683459219,-500.0,0.00015068,2]
[334023241,1722683459230,-500.0,0.00015068,2]
[334023242,1722683459239,-500.0,0.00015068,2]
[334023243,1722683459248,-621.18,0.00015068,2]
[334023244,1722683459257,-573.2,0.00015068,2]
[334023245,1722683459266,-883.45,0.00015068,2]
[334023246,1722683459278,-1281.08,0.00015068,2]
[334023247,1722683459288,-500.0,0.00015068,2]
[334023248,1722683459298,-843.46,0.00015068,2]
[334023249,1722683459308,-500.0,0.00015068,2]
[334023250,1722683459318,-500.0,0.00015068,2]
[334023251,1722683459328,-500.0,0.00015068,2]
[334023252,1722683459337,-500.0,0.00015068,2]
[334023253,1722683459347,-1447.26,0.00015068,2]
[334023254,1722683459358,-500.0,0.00015068,2]
[334023255,1722683459367,-952.47,0.00015068,2]
[334023256,1722683459376,-1186.83,0.00015068,2]
[334023257,1722683459386,-2111.79,0.00015068,2]
[334023258,1722683459395,-2341.69,0.00015068,2]
[334023259,1722683459406,-500.0,0.00015068,2]
[334023260,1722683459486,-2001.49,0.00015068,2]
[334023261,1722683459496,-500.0,0.00015068,2]
[334023262,1722683459506,-500.0,0.00015068,2]
[334023263,1722683459516,-7908.59,0.00015068,2]
[334023264,1722683459527,-500.0,0.00015068,2]
[334023265,1722683459537,-500.0,0.00015068,2]
[334023266,1722683459547,-657.41,0.00015068,2]
[334023267,1722683459556,-500.0,0.00015068,2]
[334023268,1722683459566,-500.0,0.00015068,2]
[334023269,1722683459575,-500.0,0.00015068,2]
[334023270,1722683459585,-2813.76,0.00015068,2]
[334023271,1722683459595,-2058.35,0.00015068,2]
[334023272,1722683459606,-1314.23,0.00015068,2]
[334023273,1722683459615,-872.27,0.00015068,2]
[334023274,1722683459626,-500.0,0.00015068,2]
[334023275,1722683459636,-6633.31,0.00015068,2]